bitfinex-derivatives/quotes_BTCF0:USTF0_20251030
["timestamp","ask_amount","ask_price","bid_price","bid_amount"]
[1761787204831,0.04878424,110610.0,110600.0,0.98385755]
[1761787205423,0.05078424,110610.0,110600.0,0.98385755]
[1761787205831,0.05078424,110610.0,110600.0,0.89344475]
[1761787206030,0.06994424,110610.0,110600.0,0.89344475]
[1761787206231,0.07094424,110610.0,110600.0,0.89344475]
[1761787206534,0.04978424,110610.0,110600.0,0.98385755]
[1761787207038,0.04978424,110610.0,110600.0,0.98657755]
[1761787207243,0.04978424,110610.0,110600.0,0.98385755]
[1761787207445,0.001,110610.0,110600.0,0.98385755]
[1761787208644,0.04978424,110610.0,110600.0,0.98385755]
[1761787211044,0.001,110610.0,110600.0,0.98385755]
[1761787212736,0.001,110610.0,110600.0,1.01635759]
[1761787218548,0.001,110610.0,110600.0,1.37715759]
[1761787219736,0.001,110610.0,110600.0,0.65555759]
[1761787219935,0.001,110610.0,110600.0,1.37715759]
[1761787221148,0.001,110610.0,110600.0,1.53913234]
[1761787223052,0.001,110610.0,110600.0,1.37715759]
[1761787227955,0.001,110610.0,110600.0,1.53913234]
[1761787229758,0.001,110610.0,110600.0,1.37715759]
[1761787231155,0.001,110610.0,110600.0,1.53913234]
[1761787234152,0.001,110610.0,110600.0,1.37715759]
[1761787237251,0.001,110610.0,110600.0,1.42591438]
[1761787237447,0.001,110610.0,110600.0,1.11331438]
[1761787237646,0.001,110610.0,110600.0,1.42579438]
[1761787238468,0.04701,110610.0,110600.0,0.95133963]
[1761787238758,0.04701,110610.0,110600.0,1.37703759]
[1761787240364,0.04701,110610.0,110600.0,1.42579438]
[1761787242356,0.04701,110610.0,110600.0,1.37703759]
[1761787242761,0.001,110610.0,110600.0,1.42579438]
[1761787242952,0.001,110610.0,110600.0,1.39329434]
[1761787244368,0.001,110610.0,110600.0,1.42577587]
[1761787244562,0.001,110610.0,110600.0,1.39329434]
[1761787244768,0.001,110610.0,110600.0,1.55526909]
[1761787244963,0.001,110610.0,110600.0,1.39329434]
[1761787245158,0.04701,110610.0,110600.0,1.39329434]
[1761787245562,0.04701,110610.0,110600.0,1.42577927]
[1761787252363,0.02414,110610.0,110600.0,1.42577927]
[1761787252760,0.04701,110610.0,110600.0,1.37702248]
[1761787253361,0.02414,110610.0,110600.0,1.37702248]
[1761787254268,0.04701,110610.0,110600.0,1.37702248]
[1761787255278,0.08457294,110610.0,110600.0,1.28656968]
[1761787256068,0.07142294,110610.0,110600.0,1.37698318]
[1761787259277,0.07142294,110610.0,110600.0,1.01618318]
[1761787260280,0.04855294,110610.0,110600.0,1.01618318]
[1761787260580,0.07142294,110610.0,110600.0,1.01618318]
[1761787260881,0.07142294,110610.0,110600.0,0.92576968]
[1761787261082,0.07142294,110610.0,110600.0,1.01618308]
[1761787262384,0.07142294,110610.0,110600.0,0.63769678]
[1761787262581,0.08457294,110610.0,110600.0,0.60521185]
[1761787262770,0.08457294,110610.0,110600.0,0.61332968]
[1761787262968,0.08457294,110610.0,110600.0,0.45135493]
[1761787263279,0.25654769,110610.0,110600.0,0.04764805]
[1761787263471,0.29175408,110610.0,110600.0,0.02436805]
[1761787263678,0.89175408,110610.0,110600.0,0.07065805]
[1761787264669,0.05752,110600.0,110590.0,0.05685157]
[1761787264868,0.36992,110600.0,110590.0,0.23821968]
[1761787265082,0.96992,110600.0,110590.0,0.60282968]
[1761787265273,0.96992,110600.0,110590.0,0.60282234]
[1761787266184,0.05752,110600.0,110590.0,0.60282234]
[1761787266376,0.36992,110600.0,110590.0,0.60282234]
[1761787266682,0.36992,110600.0,110590.0,0.59901234]
[1761787266985,0.36992,110600.0,110590.0,0.20572741]
[1761787267881,0.53188741,110600.0,110590.0,0.20572741]
[1761787268082,0.55829121,110600.0,110590.0,0.04376]
[1761787268278,1.16101121,110600.0,110590.0,0.16196741]
[1761787269287,1.13660741,110600.0,110590.0,0.20572741]
[1761787270180,1.13388741,110600.0,110590.0,0.20572741]
[1761787270383,0.05752,110590.0,110580.0,0.44631197]
[1761787270589,0.22220741,110590.0,110580.0,0.3608]
[1761787271178,0.21948741,110590.0,110580.0,0.52276741]
[1761787271374,0.05752,110580.0,110570.0,0.41556493]
[1761787271574,0.53464741,110580.0,110570.0,0.03248493]
[1761787271789,0.53192741,110580.0,110570.0,0.24707807]
[1761787271995,0.36996,110580.0,110570.0,0.24707807]
[1761787272384,0.36996,110580.0,110570.0,0.60787807]
[1761787272589,0.36996,110580.0,110570.0,0.08511066]
[1761787272896,0.55633121,110580.0,110570.0,0.57539314]
[1761787273189,0.55633121,110580.0,110570.0,0.21459314]
[1761787273389,0.55633121,110580.0,110570.0,0.57539314]
[1761787273589,0.55633121,110580.0,110570.0,0.20572741]
[1761787274490,0.55733121,110580.0,110570.0,0.20572741]
[1761787275280,0.53292741,110580.0,110570.0,0.20572741]
[1761787277585,0.53292741,110580.0,110570.0,0.04376]
[1761787277899,0.53292741,110580.0,110570.0,0.20572741]
[1761787279800,0.37096,110580.0,110570.0,0.20572741]
[1761787280099,0.53292741,110580.0,110570.0,0.20572741]
[1761787282396,0.53292741,110580.0,110560.0,0.36991578]
[1761787282595,0.21758741,110570.0,110560.0,0.3608]
[1761787282991,0.05562,110560.0,110550.0,0.56675741]
[1761787283197,0.3681,110560.0,110550.0,0.56675741]
[1761787283699,0.53006741,110560.0,110550.0,0.56675741]
[1761787283902,0.3681,110560.0,110550.0,0.56675741]
[1761787284100,0.05562,110560.0,110550.0,0.56675741]
[1761787284404,0.3681,110560.0,110550.0,0.56675741]
[1761787284703,0.3681,110560.0,110550.0,0.56875741]
[1761787285007,0.05562,110560.0,110550.0,0.56875741]
[1761787285199,0.3681,110560.0,110550.0,0.56875741]
[1761787285592,0.05562,110560.0,110550.0,0.56875741]
[1761787285905,0.3681,110560.0,110550.0,0.56875741]
[1761787286104,0.05562,110560.0,110550.0,0.56875741]
[1761787286400,0.3681,110560.0,110550.0,0.56875741]
[1761787290801,0.53006741,110560.0,110550.0,0.56875741]
[1761787291001,0.53006741,110560.0,110550.0,0.54719741]
[1761787291798,0.53006741,110560.0,110550.0,0.56875741]
[1761787292713,0.3681,110560.0,110550.0,0.56875741]
[1761787295300,0.3681,110560.0,110550.0,0.20795741]
[1761787295496,0.05562,110560.0,110550.0,0.20795741]
[1761787295699,0.3681,110560.0,110550.0,0.20795741]
[1761787296409,0.05562,110560.0,110550.0,0.20795741]
[1761787296911,0.3681,110560.0,110550.0,0.20795741]
[1761787297116,0.53006741,110560.0,110550.0,0.20795741]
[1761787298215,0.3681,110560.0,110550.0,0.20795741]
[1761787298413,0.53006741,110560.0,110550.0,0.20795741]
[1761787299904,0.3681,110560.0,110550.0,0.20795741]
[1761787300718,0.53006741,110560.0,110550.0,0.20795741]
[1761787301413,0.55447121,110560.0,110550.0,0.20795741]
[1761787303714,0.55447121,110560.0,110550.0,0.04599]
[1761787303911,0.55447121,110560.0,110550.0,0.16396741]
[1761787304612,0.55447121,110560.0,110550.0,0.20885741]
[1761787304818,0.5637545,110560.0,110550.0,0.20885741]
[1761787305725,0.3925038,110560.0,110550.0,0.20885741]
[1761787306925,0.0800238,110560.0,110550.0,0.20885741]
[1761787307124,0.3925038,110560.0,110550.0,0.20885741]
[1761787307727,0.3925038,110560.0,110550.0,0.21262741]
[1761787308027,0.3925038,110560.0,110550.0,0.20885741]
[1761787308723,0.3796738,110560.0,110550.0,0.73549482]
[1761787308929,0.3796738,110560.0,110550.0,0.76797975]
[1761787310925,0.3929838,110560.0,110550.0,0.44404493]
[1761787311228,0.0671938,110560.0,110550.0,0.76797975]
[1761787311425,0.3796738,110560.0,110550.0,0.76797975]
[1761787311625,0.0244038,110570.0,110560.0,0.05788]
[1761787311830,0.0244038,110570.0,110560.0,0.86554555]
[1761787312028,0.0244038,110570.0,110560.0,1.33999296]
[1761787312735,0.0463938,110580.0,110570.0,0.1483177]
[1761787312921,0.0463938,110580.0,110570.0,0.83305252]
[1761787313533,0.0463938,110580.0,110570.0,0.74261482]
[1761787313733,0.0688238,110580.0,110570.0,0.74261482]
[1761787314428,0.0698238,110580.0,110570.0,0.74261482]
[1761787315344,0.0698238,110580.0,110570.0,0.58064741]
[1761787315525,0.0831338,110580.0,110570.0,0.56765741]
[1761787315724,0.0831338,110580.0,110570.0,0.20685741]
[1761787315930,0.0698238,110580.0,110570.0,0.58064741]
[1761787319229,0.0831338,110580.0,110570.0,0.58064741]
[1761787319430,0.0831338,110580.0,110570.0,0.56765741]
[1761787320128,0.0831338,110580.0,110570.0,0.58064741]
[1761787320529,0.24510121,110580.0,110570.0,0.04489]
[1761787320729,0.05773,110570.0,110560.0,0.56765741]
[1761787320931,0.37013,110570.0,110560.0,0.56765741]
[1761787321131,0.37013,110570.0,110560.0,0.72962482]
[1761787321941,0.37013,110570.0,110560.0,0.40569]
[1761787322128,0.37013,110570.0,110560.0,0.72962482]
[1761787322335,0.35682,110570.0,110560.0,0.74261482]
[1761787323123,0.37013,110570.0,110560.0,0.74261482]
[1761787324138,0.37013,110570.0,110560.0,0.41868]
[1761787324436,0.37013,110570.0,110560.0,0.74261482]
[1761787324835,0.35682,110570.0,110560.0,0.74261482]
[1761787325426,0.35682,110570.0,110560.0,0.58071813]
[1761787325821,0.04442,110570.0,110560.0,0.58071813]
[1761787326032,0.35682,110570.0,110560.0,0.58071813]
[1761787329338,0.04442,110570.0,110560.0,0.58071813]
[1761787330440,0.3817938,110580.0,110570.0,0.05659]
[1761787330736,0.3817938,110580.0,110570.0,0.57942813]
[1761787332030,0.3827938,110580.0,110570.0,0.57942813]
[1761787332530,0.3827538,110580.0,110570.0,0.57942813]
[1761787333643,0.0703938,110580.0,110570.0,0.57942813]
[1761787334050,0.3827538,110580.0,110570.0,0.57942813]
[1761787334536,0.3961938,110580.0,110570.0,0.57942813]
[1761787335241,0.05826,110570.0,110560.0,0.40599]
[1761787335435,0.26469918,110570.0,110560.0,0.02326]
[1761787335635,0.26469918,110570.0,110560.0,0.04519]
[1761787335839,0.10266105,110570.0,110560.0,0.04519]
[1761787336638,0.08266105,110570.0,110560.0,0.04519]
[1761787339442,0.24469918,110570.0,110560.0,0.04519]
[1761787339644,0.08266105,110570.0,110560.0,0.02326]
[1761787340146,0.08266105,110570.0,110560.0,0.04519]
[1761787341248,0.08266601,110570.0,110560.0,0.04519]
[1761787341954,0.1151524,110570.0,110560.0,0.04519]
[1761787342146,0.08266601,110570.0,110560.0,0.04519]
[1761787342855,0.09074639,110570.0,110560.0,0.04519]
[1761787343039,0.73358452,110570.0,110560.0,0.04519]
[1761787343245,0.73358452,110570.0,110540.0,0.4477146]
[1761787343246,0.05826,110550.0,110540.0,0.4477146]
[1761787343547,0.53265813,110550.0,110540.0,0.43847493]
[1761787343747,0.53265813,110550.0,110530.0,0.48723172]
[1761787343752,0.05826,110540.0,110530.0,0.48723172]
[1761787344046,0.05826,110540.0,110530.0,0.43847493]
[1761787345553,0.05526,110540.0,110530.0,0.43847493]
[1761787346758,0.04182,110540.0,110530.0,0.60684306]
[1761787346950,0.35418,110540.0,110530.0,0.60684306]
[1761787348054,0.04182,110540.0,110530.0,0.60684306]
[1761787348351,0.35418,110540.0,110530.0,0.60684306]
[1761787348554,0.04182,110540.0,110530.0,0.60684306]
[1761787348757,0.35418,110540.0,110530.0,0.60684306]
[1761787352449,0.04182,110540.0,110530.0,0.60684306]
[1761787352655,0.35422,110540.0,110530.0,0.60684306]
[1761787353156,0.0568,110550.0,110540.0,0.05633]
[1761787353359,0.3692,110550.0,110540.0,0.57916813]
[1761787355543,0.3712,110550.0,110540.0,0.57916813]
[1761787356157,0.0588,110550.0,110540.0,0.57916813]
[1761787356654,0.3712,110550.0,110540.0,0.57916813]
[1761787357655,0.0588,110550.0,110540.0,0.57916813]
[1761787357845,0.3712,110550.0,110540.0,0.57916813]
[1761787358047,0.35776,110550.0,110540.0,0.57916813]
[1761787358357,0.33569,110550.0,110540.0,0.57916813]
[1761787358552,0.33569,110550.0,110540.0,0.61165306]
[1761787359057,0.002,110550.0,110540.0,0.70211546]
[1761787361560,0.002,110550.0,110540.0,0.34131546]
[1761787361756,0.002,110550.0,110540.0,1.06291546]
[1761787362257,0.35511,110560.0,110550.0,0.05659]
[1761787362450,0.35511,110560.0,110550.0,0.74146626]
[1761787362852,0.35511,110560.0,110550.0,0.57942813]
[1761787363565,0.35711,110560.0,110550.0,0.57942813]
[1761787364559,0.37055,110560.0,110550.0,0.57942813]
[1761787364752,0.37055,110560.0,110550.0,0.40457]
[1761787364954,0.37055,110560.0,110540.0,0.39328493]
[1761787364955,0.05619,110550.0,110540.0,0.43705493]
[1761787365549,0.05619,110550.0,110540.0,0.07625493]
[1761787365863,0.05619,110540.0,110530.0,0.43705493]
[1761787366064,0.36855,110540.0,110530.0,0.43705493]
[1761787366454,0.38938958,110540.0,110530.0,0.40457]
[1761787366655,0.38938958,110540.0,110530.0,0.57441813]
[1761787366955,0.37594958,110540.0,110530.0,0.57441813]
[1761787367649,0.38938958,110540.0,110530.0,0.57441813]
[1761787367855,0.38938958,110540.0,110530.0,0.56660813]
[1761787368752,0.38938958,110540.0,110530.0,0.57441813]
[1761787370271,0.38938958,110540.0,110530.0,0.20580813]
[1761787371963,0.36855,110540.0,110530.0,0.20580813]
[1761787372157,0.38939575,110540.0,110530.0,0.20580813]
[1761787373969,0.41380164,110540.0,110530.0,0.20580813]
[1761787374357,0.08800164,110540.0,110530.0,0.57441813]
[1761787374558,0.37595575,110540.0,110530.0,0.57441813]
[1761787374966,0.40036164,110540.0,110530.0,0.57441813]
[1761787375168,0.37595575,110540.0,110530.0,0.57441813]
[1761787375470,0.41380164,110540.0,110530.0,0.20580813]
[1761787376063,0.41380164,110540.0,110530.0,0.04377]
[1761787377469,0.41380164,110540.0,110530.0,0.40457]
[1761787377779,0.41380164,110540.0,110530.0,0.04377]
[1761787378270,0.41380164,110540.0,110530.0,0.20580813]
[1761787378473,0.41380164,110540.0,110530.0,0.40457]
[1761787378657,0.41380164,110540.0,110530.0,0.57942813]
[1761787378863,0.40036164,110540.0,110530.0,0.57942813]
[1761787380070,0.41380164,110540.0,110530.0,0.56660813]
[1761787382459,0.41380164,110540.0,110530.0,0.40457]
[1761787382665,0.41380164,110540.0,110530.0,0.56660813]
[1761787383778,0.41380164,110540.0,110530.0,0.40457]
[1761787384176,0.41380164,110540.0,110530.0,0.56660813]
[1761787385288,0.41380164,110540.0,110530.0,0.56672139]
[1761787388580,0.41380164,110540.0,110530.0,0.57453139]
[1761787388780,0.40036164,110540.0,110530.0,0.57453139]
[1761787391083,0.08800164,110540.0,110530.0,0.73668278]
[1761787391287,0.40036164,110540.0,110530.0,0.73668278]
[1761787393373,0.40036164,110540.0,110530.0,0.57453139]
[1761787394273,0.04525164,110540.0,110530.0,1.13951338]
[1761787394482,0.04525164,110540.0,110530.0,1.14223338]
[1761787397085,0.04525164,110540.0,110530.0,1.13951338]
[1761787397386,0.04525164,110540.0,110530.0,1.14223338]
[1761787401784,0.06673164,110540.0,110530.0,1.13951338]
[1761787402483,0.04525164,110540.0,110530.0,1.13951338]
[1761787402788,0.02084575,110540.0,110530.0,1.13951338]
[1761787406594,0.02084575,110540.0,110530.0,1.50031338]
[1761787406789,0.02084575,110540.0,110530.0,1.50303338]
[1761787408590,0.02084575,110540.0,110530.0,1.66518477]
[1761787409585,0.02084575,110540.0,110530.0,1.50303338]
[1761787409790,0.02084575,110540.0,110530.0,1.50031338]
[1761787410499,0.02084575,110540.0,110530.0,1.50303338]
[1761787410692,0.02440589,110550.0,110540.0,0.47085518]
[1761787410896,0.02440589,110550.0,110540.0,0.99380657]
[1761787411503,0.02440589,110550.0,110540.0,0.83165518]
[1761787412100,0.02540589,110550.0,110540.0,0.83165518]
[1761787415802,0.02540589,110550.0,110540.0,0.99652657]
[1761787416391,0.05689228,110560.0,110550.0,0.0584]
[1761787416592,0.05689228,110560.0,110550.0,1.14619698]
[1761787418701,0.05689228,110560.0,110550.0,1.21806319]
[1761787419098,0.05689228,110560.0,110550.0,1.21906319]
[1761787420502,0.09966228,110560.0,110550.0,1.0569118]
[1761787420689,0.07525639,110560.0,110550.0,0.7446718]
[1761787421607,0.07525639,110560.0,110550.0,0.90682319]
[1761787422496,0.07525639,110560.0,110550.0,0.90582319]
[1761787422696,0.07625639,110560.0,110550.0,0.81536899]
[1761787423202,0.07525639,110560.0,110550.0,0.81536899]
[1761787423404,0.07625639,110560.0,110550.0,0.81536899]
[1761787423804,0.08888639,110560.0,110550.0,0.4192]
[1761787424104,0.29982202,110560.0,110550.0,0.56855139]
[1761787424411,0.10518424,110560.0,110550.0,0.20775139]
[1761787425309,0.26733563,110560.0,110550.0,0.20775139]
[1761787425711,0.10518424,110560.0,110550.0,0.20775139]
[1761787429205,0.70518424,110560.0,110550.0,0.20775139]
[1761787430102,0.86733563,110560.0,110550.0,0.20775139]
[1761787432015,0.26733563,110560.0,110550.0,0.0456]
[1761787435214,0.0554,110550.0,110540.0,0.4064]
[1761787435516,0.25009652,110550.0,110540.0,0.4064]
[1761787435908,0.25009652,110550.0,110540.0,0.56855139]
[1761787436109,0.56233652,110550.0,110540.0,0.4064]
[1761787436309,0.60857563,110550.0,110540.0,0.4064]
[1761787436614,0.60857563,110550.0,110540.0,0.38322]
[1761787436919,0.61741662,110550.0,110540.0,0.38322]
[1761787437831,0.60857563,110550.0,110540.0,0.38322]
[1761787438019,0.57857563,110550.0,110540.0,0.4064]
[1761787438418,0.61111346,110550.0,110540.0,0.4064]
[1761787439215,0.61111346,110550.0,110540.0,0.56855139]
[1761787440816,0.40017783,110550.0,110540.0,0.74350278]
[1761787441323,0.37940949,110550.0,110540.0,0.74350278]
[1761787441709,0.06716949,110550.0,110540.0,0.74350278]
[1761787441914,0.37940949,110550.0,110540.0,0.74350278]
[1761787442613,0.39203949,110550.0,110540.0,0.74350278]
[1761787443014,0.39203949,110550.0,110540.0,0.54537139]
[1761787443215,0.39203949,110550.0,110540.0,0.56855139]
[1761787443615,0.37940949,110550.0,110540.0,0.58135139]
[1761787443824,0.37940949,110550.0,110540.0,0.74350278]
[1761787447416,0.37940949,110550.0,110540.0,0.58130607]
[1761787447617,0.06716949,110550.0,110540.0,0.58130607]
[1761787447821,0.38164949,110560.0,110550.0,0.05723]
[1761787448011,0.06940949,110560.0,110550.0,0.58013607]
[1761787448216,0.42681732,110570.0,110560.0,0.05723]
[1761787448426,0.39427949,110570.0,110560.0,0.58013607]
[1761787449915,0.39427949,110570.0,110560.0,0.58941898]
[1761787450321,0.39627949,110570.0,110560.0,0.40523]
[1761787450921,0.39627949,110570.0,110560.0,0.04443]
[1761787452837,0.39627949,110570.0,110560.0,0.05348172]
[1761787454013,0.39627949,110570.0,110560.0,0.04443]
[1761787455028,0.39627949,110570.0,110560.0,0.0575]
[1761787455732,0.39627949,110570.0,110560.0,0.05351526]
[1761787457436,0.39627949,110570.0,110560.0,0.21562133]
[1761787464343,0.42881732,110570.0,110560.0,0.21562133]
[1761787465543,0.39627949,110570.0,110560.0,0.58910133]
[1761787467346,0.42881732,110570.0,110560.0,0.58910133]
[1761787468548,0.42881732,110570.0,110560.0,0.57642133]
[1761787469945,0.42881732,110570.0,110560.0,0.58910133]
[1761787470347,0.40441783,110570.0,110560.0,0.58910133]
[1761787470541,0.10393991,110570.0,110560.0,0.58910133]
[1761787470852,0.02639208,110570.0,110560.0,0.99170723]
[1761787472542,0.04925208,110570.0,110560.0,0.99170723]
[1761787472738,0.07143208,110570.0,110560.0,0.99170723]
[1761787473050,0.06943208,110570.0,110560.0,0.99170723]
[1761787474543,0.07043208,110570.0,110560.0,0.99170723]
[1761787475951,0.07043208,110570.0,110560.0,0.99170733]
[1761787476851,0.07043208,110570.0,110560.0,0.90126133]
[1761787477150,0.07043208,110570.0,110560.0,0.99170723]
[1761787477346,0.10296991,110570.0,110560.0,0.99170723]
[1761787477548,0.11612991,110570.0,110560.0,0.58910133]
[1761787477749,0.09173783,110570.0,110560.0,0.41431526]
[1761787478051,0.6659639,110570.0,110560.0,0.3608]
[1761787478241,0.05963,110560.0,110550.0,0.40552]
[1761787478442,0.24614832,110560.0,110550.0,0.40552]
[1761787478647,0.11216783,110560.0,110550.0,0.38364]
[1761787478850,0.05963,110550.0,110540.0,0.43799614]
[1761787479149,0.05963,110550.0,110540.0,0.41447529]
[1761787479150,0.39616279,110550.0,110540.0,0.41447529]
[1761787479654,0.39616279,110550.0,110540.0,0.57658136]
[1761787479845,0.39616279,110550.0,110540.0,0.58964136]
[1761787480442,0.37175,110550.0,110540.0,0.59164136]
[1761787480944,0.35859,110550.0,110540.0,0.59164136]
[1761787481148,0.35859,110550.0,110540.0,0.58964136]
[1761787482949,0.38300279,110550.0,110540.0,0.58964136]
[1761787483252,0.39616279,110550.0,110540.0,0.58964136]
[1761787483848,0.39616279,110550.0,110540.0,0.57658136]
[1761787484346,0.39616279,110550.0,110540.0,0.58964136]
[1761787484946,0.38300279,110550.0,110540.0,0.58964136]
[1761787487855,0.07088279,110550.0,110540.0,0.58964136]
[1761787490165,0.08404279,110550.0,110540.0,0.58964136]
[1761787491460,0.08404279,110550.0,110540.0,0.57658136]
[1761787492960,0.05963,110550.0,110540.0,0.41447529]
[1761787494057,0.08404279,110550.0,110540.0,0.41447529]
[1761787494257,0.08404279,110550.0,110540.0,0.57658136]
[1761787499862,0.04755279,110550.0,110540.0,0.58964136]
[1761787500062,0.07088279,110550.0,110540.0,0.58964136]
[1761787502464,0.08404279,110550.0,110540.0,0.57658136]
[1761787503263,0.08404279,110550.0,110540.0,0.58964136]
[1761787506975,0.11658062,110550.0,110540.0,0.40552]
[1761787507364,0.09216783,110550.0,110540.0,0.40552]
[1761787507970,0.09216783,110550.0,110540.0,0.04472]
[1761787508168,0.09216783,110550.0,110540.0,0.20682607]
[1761787508874,0.09216783,110550.0,110540.0,0.04472]
[1761787509261,0.25430399,110550.0,110540.0,0.20685616]
[1761787509864,0.07900783,110550.0,110540.0,0.38155232]
[1761787511774,0.09176783,110550.0,110540.0,0.38155232]
[1761787512171,0.09176783,110550.0,110540.0,0.21941616]
[1761787512885,0.09176783,110550.0,110540.0,0.20685616]
[1761787513063,0.25390399,110550.0,110540.0,0.20685616]
[1761787513468,0.25390399,110550.0,110540.0,0.04472]
[1761787513772,0.25390399,110550.0,110540.0,0.20685616]
[1761787515763,0.09176783,110550.0,110540.0,0.20685616]
[1761787515965,0.25390399,110550.0,110540.0,0.20685616]
[1761787520576,0.25590399,110550.0,110540.0,0.20685616]
[1761787521277,0.25590399,110550.0,110540.0,0.04472]
[1761787521578,0.25590399,110550.0,110540.0,0.04576]
[1761787522282,0.25590399,110550.0,110540.0,0.20789616]
[1761787522879,0.26487267,110550.0,110540.0,0.20789616]
[1761787524170,0.26487267,110550.0,110540.0,0.04576]
[1761787524670,0.26487267,110550.0,110540.0,0.20789616]
[1761787524975,0.26487267,110550.0,110540.0,0.04576]
[1761787525179,0.26487267,110550.0,110530.0,0.04556]
[1761787525180,0.05803,110540.0,110530.0,0.04556]
[1761787525385,0.72699284,110540.0,110530.0,0.04556]
[1761787525878,0.56485668,110540.0,110530.0,0.04556]
[1761787526280,0.56485668,110540.0,110530.0,0.04656]
[1761787527281,0.56585668,110540.0,110530.0,0.04656]
[1761787527781,0.56585668,110540.0,110530.0,0.20869616]
[1761787528290,0.56585668,110540.0,110530.0,0.04656]
[1761787528772,0.77799284,110540.0,110530.0,0.02364]
[1761787528972,0.77799284,110540.0,110530.0,0.001]
[1761787529281,0.61585668,110540.0,110530.0,0.02364]
[1761787529580,0.77799284,110540.0,110530.0,0.04656]
[1761787530473,0.61585668,110540.0,110530.0,0.04656]
[1761787530876,0.77799284,110540.0,110530.0,0.04656]
[1761787531080,0.61585668,110540.0,110530.0,0.04656]
[1761787531980,0.77799284,110540.0,110530.0,0.04656]
[1761787532782,0.61585668,110540.0,110530.0,0.04656]
[1761787537878,0.97665668,110540.0,110530.0,0.04656]
[1761787538987,1.13879284,110540.0,110530.0,0.04656]
[1761787539588,1.13879284,110540.0,110530.0,0.001]
[1761787539884,0.0587,110520.0,110510.0,0.43919614]
[1761787540091,0.53295616,110520.0,110510.0,0.6013323]
[1761787540776,0.53295616,110520.0,110510.0,0.07839614]
[1761787540983,0.53295616,110520.0,110510.0,0.2405323]
[1761787541380,0.73162,110520.0,110510.0,0.2425323]
[1761787541790,0.73162,110520.0,110510.0,0.2445323]
[1761787542186,0.73162,110520.0,110510.0,0.2425323]
[1761787542391,0.73162,110520.0,110510.0,0.2405323]
[1761787542595,0.73162,110520.0,110510.0,0.2415323]
[1761787543584,0.73162,110520.0,110510.0,0.2541823]
[1761787543784,0.37082,110520.0,110510.0,0.6149823]
[1761787544083,0.37082,110520.0,110510.0,0.2541823]
[1761787544283,0.37082,110520.0,110510.0,0.09204614]
[1761787544585,0.37082,110520.0,110510.0,0.2541823]
[1761787545182,0.73162,110520.0,110510.0,0.2415323]
[1761787545382,0.73162,110520.0,110510.0,0.04692]
[1761787545582,0.73162,110520.0,110510.0,0.20905616]
[1761787545983,0.89375616,110520.0,110510.0,0.04692]
[1761787546183,0.89375616,110520.0,110510.0,0.20905616]
[1761787546387,0.89375616,110520.0,110510.0,0.04692]
[1761787546588,0.89375616,110520.0,110510.0,0.20905616]
[1761787549104,1.05589232,110520.0,110510.0,0.001]
[1761787549481,1.37030648,110520.0,110510.0,0.001]
[1761787550788,1.37947457,110520.0,110510.0,0.001]
[1761787551294,0.0587,110510.0,110500.0,0.05583507]
[1761787551485,1.15377232,110510.0,110500.0,0.03257507]
[1761787551685,1.15377232,110510.0,110500.0,9.893e-05]
[1761787552395,1.17467307,110510.0,110500.0,9.893e-05]
[1761787552600,1.17667307,110510.0,110500.0,9.893e-05]
[1761787553196,1.34667307,110510.0,110500.0,9.893e-05]
[1761787553395,0.05861,110490.0,110480.0,0.45547679]
[1761787553592,0.56290616,110490.0,110480.0,0.45547679]
[1761787553990,0.56290616,110490.0,110480.0,0.61761295]
[1761787554193,0.60821991,110490.0,110480.0,0.56885616]
[1761787554386,0.60829829,110490.0,110480.0,0.57804949]
[1761787554700,0.60829829,110490.0,110480.0,0.56985616]
[1761787555096,0.61724938,110490.0,110480.0,0.40872]
[1761787555301,0.61724938,110490.0,110480.0,0.002]
[1761787555797,0.97804938,110490.0,110480.0,0.002]
[1761787556197,1.45275606,110490.0,110480.0,0.002]
[1761787556397,1.6110619,110490.0,110480.0,0.01520281]
[1761787556590,1.6110619,110490.0,110460.0,0.38406]
[1761787556591,0.0587,110470.0,110460.0,0.38406]
[1761787556794,0.55397469,110470.0,110460.0,0.40672]
[1761787557196,0.0359,110460.0,110450.0,0.56885616]
[1761787557398,0.24173575,110460.0,110450.0,0.40672]
[1761787557705,0.24182488,110460.0,110450.0,0.40672]
[1761787558001,0.24082488,110460.0,110450.0,0.40672]
[1761787558700,0.24082488,110460.0,110450.0,0.40772]
[1761787558900,0.24082488,110460.0,110450.0,0.04692]
[1761787559201,0.24082488,110460.0,110450.0,0.04792]
[1761787560898,0.29082488,110460.0,110450.0,0.002]
[1761787561299,0.45296104,110460.0,110450.0,0.002]
[1761787561603,0.45296104,110460.0,110430.0,0.53558616]
[1761787561604,0.05773,110440.0,110430.0,0.40672]
[1761787561808,0.37003353,110440.0,110430.0,0.40672]
[1761787561995,0.53216969,110440.0,110430.0,0.40672]
[1761787562394,0.53216969,110440.0,110430.0,0.38406]
[1761787562693,0.53216969,110440.0,110430.0,0.3638]
[1761787562694,0.56216969,110440.0,110430.0,0.3638]
[1761787563200,0.56216969,110440.0,110430.0,0.02626]
[1761787563389,0.56216969,110440.0,110430.0,0.04892]
[1761787564307,0.56216969,110440.0,110430.0,0.05092]
[1761787564706,0.53216969,110440.0,110430.0,0.21305616]
[1761787565003,0.53216969,110440.0,110430.0,0.21105616]
[1761787565308,0.53216969,110440.0,110430.0,0.20905616]
[1761787565511,0.92296969,110440.0,110430.0,0.001]
[1761787565814,1.04296969,110440.0,110430.0,0.001]
[1761787566108,1.20510585,110440.0,110430.0,0.001]
[1761787567103,1.20510585,110440.0,110420.0,0.52305225]
[1761787567104,0.0568,110430.0,110420.0,0.56850225]
[1761787567410,0.21893616,110430.0,110420.0,0.56850225]
[1761787567908,0.0568,110430.0,110420.0,0.56850225]
[1761787568213,0.0568,110430.0,110420.0,0.56950225]
[1761787568604,0.21893616,110430.0,110420.0,0.01436018]
[1761787568804,0.57981503,110430.0,110420.0,0.01436018]
[1761787569001,0.63981503,110430.0,110420.0,0.01436018]
[1761787570100,0.75981503,110430.0,110420.0,0.01436018]
[1761787570300,0.75981503,110430.0,110420.0,0.01336018]
[1761787571008,0.63981503,110430.0,110420.0,0.01336018]
[1761787571417,0.64020087,110430.0,110420.0,0.01336018]
[1761787571616,0.64120087,110430.0,110420.0,0.01336018]
[1761787571911,1.09644287,110430.0,110420.0,0.01336018]
[1761787572119,0.0568,110400.0,110390.0,0.40625]
[1761787572299,0.36028505,110400.0,110390.0,0.40625]
[1761787572505,0.52280705,110400.0,110390.0,0.04545]
[1761787572705,0.06044,110390.0,110380.0,0.40487]
[1761787573005,0.06044,110390.0,110380.0,0.41400209]
[1761787573200,0.06053854,110390.0,110380.0,0.41400209]